bitfinex/quotes_SOLUSD_20230120
["timestamp","ask_amount","ask_price","bid_price","bid_amount"]
[1674238512056,42.86,22.829,22.798,53.6636137]
[1674238512057,42.86,22.827,22.81,26.16]
[1674238512476,10.0,22.832,22.811,10.0]
[1674238512693,119.7953,22.835,22.812,5.05806]
[1674238512890,87.8336913,22.836,22.812,34.86318908]
[1674238513106,87.8336913,22.836,22.82,26.16]
[1674238513311,87.8336913,22.836,22.822,10.0]
[1674238513525,87.8336913,22.836,22.823,20.96]
[1674238513850,87.8336913,22.836,22.823,74.6236137]
[1674238514166,87.8336913,22.836,22.824,88.24168557]
[1674238514481,87.8336913,22.836,22.825,20.96]
[1674238514687,87.8336913,22.836,22.825,29.80512908]
[1674238514878,87.8336913,22.836,22.826,9.80512908]
[1674238515089,87.8336913,22.836,22.827,20.0]
[1674238515533,87.8336913,22.836,22.828,10.76512908]
[1674238515726,87.8336913,22.836,22.829,20.0]
[1674238515941,87.8336913,22.836,22.829,29.80512908]
[1674238516152,87.8336913,22.836,22.83,9.80512908]
[1674238516357,10.0,22.835,22.82,26.16]
[1674238516566,10.0,22.835,22.822,9.80512908]
[1674238516778,10.0,22.833,22.822,9.80512908]
[1674238518486,10.0,22.833,22.816,43.85848462]
[1674238518796,10.0,22.833,22.818,9.80512908]
[1674238518797,10.0,22.831,22.818,9.80512908]
[1674238519198,32.86,22.83,22.818,9.80512908]
[1674238519408,10.0,22.829,22.817,20.0]
[1674238519623,32.86,22.828,22.816,9.80512908]
[1674238519846,10.0,22.833,22.818,9.80512908]
[1674238520055,10.0,22.833,22.819,20.0]
[1674238520687,10.0,22.833,22.82,9.80512908]
[1674238521200,10.0,22.833,22.821,20.0]
[1674238521522,10.0,22.833,22.822,9.80512908]
[1674238521844,10.0,22.833,22.823,20.0]
[1674238522044,32.86,22.832,22.821,20.0]
[1674238522245,10.0,22.833,22.821,20.0]
[1674238522459,10.0,22.833,22.815,29.80512908]
[1674238522673,10.0,22.831,22.815,20.0]
[1674238522993,10.0,22.831,22.809,10.0]
[1674238523309,10.0,22.831,22.815,9.80512908]
[1674238523310,115.6188,22.83,22.815,9.80512908]
[1674238523726,115.6188,22.83,22.816,20.0]
[1674238523938,103.1188,22.83,22.816,20.0]
[1674238524150,103.1188,22.83,22.817,10.76512908]
[1674238524342,103.1188,22.83,22.818,20.0]
[1674238524553,10.0,22.829,22.818,20.0]
[1674238524777,10.0,22.829,22.819,9.80512908]
[1674238525946,10.0,22.829,22.809,43.85848462]
[1674238526261,33.82,22.828,22.8,36.16]
[1674238526444,27.0,22.827,22.799,53.85848462]
[1674238526659,32.87,22.826,22.799,53.85848462]
[1674238526886,32.87,22.826,22.799,10.0]
[1674238527082,10.0,22.825,22.799,10.0]
[1674238527292,32.87,22.824,22.799,10.0]
[1674238527502,10.0,22.823,22.799,53.85848462]
[1674238527721,32.87,22.822,22.8,9.21475838]
[1674238527934,10.0,22.821,22.801,10.0]
[1674238528141,32.87,22.82,22.801,10.0]
[1674238528454,32.87,22.82,22.802,53.073243]
[1674238528860,32.87,22.82,22.803,9.21475838]
[1674238529075,10.0,22.819,22.803,9.21475838]
[1674238529289,32.88,22.818,22.804,20.0]
[1674238529496,0.96,22.817,22.803,20.0]
[1674238529741,32.88,22.816,22.803,20.0]
[1674238529942,10.0,22.815,22.803,20.0]
[1674238530335,32.88,22.816,22.804,9.21475838]
[1674238530546,32.88,22.818,22.805,20.0]
[1674238531093,10.0,22.817,22.805,20.0]
[1674238531410,10.0,22.817,22.803,20.0]
[1674238531620,33.84,22.816,22.803,20.0]
[1674238532335,10.0,22.815,22.803,20.0]
[1674238532547,33.84,22.814,22.795,20.0]
[1674238532756,152.3229,22.814,22.796,9.21475838]
[1674238532969,119.4429,22.814,22.798,10.0]
[1674238533180,119.4429,22.814,22.799,20.0]
[1674238533391,119.4429,22.814,22.799,29.21475838]
[1674238533598,10.0,22.813,22.799,29.21475838]
[1674238533821,10.0,22.813,22.8,43.85848462]
[1674238534247,10.0,22.813,22.801,29.21475838]
[1674238534641,10.0,22.813,22.802,9.21475838]
[1674238535068,10.0,22.813,22.803,20.0]
[1674238535282,10.0,22.813,22.802,9.21475838]
[1674238535489,10.0,22.813,22.804,9.21475838]
[1674238535698,10.0,22.813,22.805,20.0]
[1674238536127,10.0,22.813,22.805,29.21475838]
[1674238536335,10.0,22.813,22.792,40.83748396]
[1674238536537,10.0,22.813,22.804,9.21475838]
[1674238537072,10.0,22.813,22.786,10.0]
[1674238537305,10.0,22.813,22.794,9.21475838]
[1674238537947,10.0,22.817,22.8,26.1]
[1674238538260,32.87,22.822,22.801,39.21475838]
[1674238538456,42.87,22.826,22.802,0.96]
[1674238538667,10.0,22.826,22.802,10.17475838]
[1674238538882,42.87,22.826,22.81,25.92]
[1674238539098,10.0,22.826,22.811,20.0]
[1674238539293,10.0,22.826,22.811,29.21475838]
[1674238539512,10.0,22.826,22.812,9.21475838]
[1674238539823,10.0,22.826,22.813,20.0]
[1674238539824,42.87,22.826,22.813,20.0]
[1674238540152,42.87,22.826,22.814,9.21475838]
[1674238540678,42.87,22.826,22.815,20.0]
[1674238541297,42.87,22.826,22.815,9.21475838]
[1674238541509,42.87,22.826,22.816,20.0]
[1674238542674,42.87,22.826,22.808,20.0]
[1674238542866,10.0,22.824,22.808,20.0]
[1674238543083,0.96,22.823,22.808,20.0]
[1674238543310,0.96,22.823,22.804,9.21475838]
[1674238543522,0.96,22.823,22.808,9.21475838]
[1674238543717,0.96,22.823,22.809,20.0]
[1674238544037,42.87,22.824,22.809,29.21475838]
[1674238544884,10.0,22.824,22.81,24.24]
[1674238545204,10.0,22.824,22.811,29.21475838]
[1674238545605,10.0,22.824,22.812,9.21475838]
[1674238545935,10.0,22.824,22.813,20.0]
[1674238546337,10.0,22.824,22.813,29.21475838]
[1674238546987,235.8415913,22.836,22.814,10.0]
[1674238547184,235.8415913,22.836,22.815,20.0]
[1674238547407,235.8415913,22.836,22.815,29.21475838]
[1674238547738,235.8415913,22.836,22.816,19.21475838]
[1674238547924,235.8415913,22.836,22.817,20.0]
[1674238548141,202.9915913,22.836,22.818,10.0]
[1674238548470,10.0,22.835,22.818,18.42951676]
[1674238548657,42.85,22.835,22.819,20.0]
[1674238548867,10.0,22.835,22.817,20.0]
[1674238549296,10.0,22.835,22.815,20.0]
[1674238549511,10.0,22.835,22.818,9.21475838]
[1674238549725,32.85,22.834,22.819,20.0]
[1674238549919,10.96,22.833,22.819,20.0]
[1674238550254,10.96,22.833,22.82,9.21475838]
[1674238550662,10.96,22.833,22.821,20.0]
[1674238551077,10.96,22.833,22.822,9.21475838]
[1674238551286,10.96,22.833,22.823,20.0]
[1674238551809,10.96,22.833,22.823,29.21475838]
[1674238552019,10.96,22.833,22.823,20.0]
[1674238552229,10.96,22.833,22.811,20.0]
[1674238552440,10.96,22.833,22.821,9.21475838]
[1674238552672,10.96,22.833,22.822,20.0]
[1674238553198,43.82,22.833,22.819,20.0]
[1674238553595,43.82,22.833,22.819,29.21475838]
[1674238553823,43.82,22.833,22.81,10.0]
[1674238554016,10.0,22.833,22.818,9.21475838]
[1674238554864,10.0,22.833,22.81,10.0]
[1674238555083,10.0,22.833,22.811,9.21475838]
[1674238555298,42.86,22.833,22.812,20.0]
[1674238555696,42.86,22.833,22.813,9.21475838]
[1674238555906,42.86,22.833,22.806,10.0]
[1674238556149,17.96,22.832,22.81,24.4]
[1674238556327,32.86,22.831,22.81,24.4]
[1674238556536,32.86,22.831,22.805,40.83748396]
[1674238556537,10.0,22.829,22.805,40.83748396]
[1674238556762,135.5,22.827,22.8,24.24]
[1674238556955,10.0,22.825,22.8,24.24]
[1674238557167,32.87,22.824,22.8,24.24]
[1674238557381,0.96,22.823,22.795,40.83748396]
[1674238557606,10.0,22.821,22.792,10.0]
[1674238557795,49.87,22.82,22.8,24.2]
[1674238558008,10.96,22.819,22.8,24.2]
[1674238558217,10.0,22.817,22.8,24.2]
[1674238558652,0.96,22.816,22.8,24.2]
[1674238559500,10.0,22.817,22.8,24.2]
[1674238560237,10.0,22.817,22.801,20.0]
[1674238560448,32.87,22.824,22.801,20.0]
[1674238560947,42.87,22.826,22.81,24.26]
[1674238561162,42.87,22.826,22.811,20.0]
[1674238561163,120.8051,22.825,22.811,20.0]
[1674238562213,10.0,22.824,22.811,20.0]
[1674238565486,120.8051,22.825,22.811,20.0]
[1674238565697,118.7768,22.833,22.811,20.0]
[1674238565903,10.0,22.832,22.812,10.0]
[1674238566119,10.0,22.832,22.813,20.0]
[1674238566432,10.0,22.832,22.82,24.43]
[1674238566838,10.0,22.832,22.821,20.0]
[1674238567049,10.0,22.833,22.821,20.0]
[1674238568095,10.0,22.835,22.821,20.0]
[1674238569571,10.0,22.835,22.821,29.11547375]
[1674238569777,10.0,22.835,22.822,10.0]
[1674238569986,10.0,22.835,22.823,20.0]
[1674238570849,10.0,22.835,22.82,24.43]
[1674238573161,10.0,22.835,22.821,20.0]
[1674238574513,87.8336913,22.836,22.822,44.80872396]
[1674238574720,87.8336913,22.836,22.823,20.0]
[1674238574721,10.0,22.835,22.823,20.0]
[1674238575367,10.0,22.835,22.821,20.0]
[1674238576728,0.96,22.834,22.821,20.0]
[1674238577340,42.86,22.833,22.814,42.36617996]
[1674238577558,42.86,22.833,22.81,24.2]
[1674238577559,0.96,22.832,22.81,24.2]
[1674238577767,32.86,22.831,22.811,9.11547375]
[1674238577987,0.96,22.83,22.81,24.2]
[1674238578201,32.86,22.829,22.81,24.2]
[1674238578408,10.0,22.828,22.811,9.11547375]
[1674238578618,32.86,22.827,22.811,9.11547375]
[1674238578836,10.0,22.828,22.811,9.11547375]
[1674238579037,10.0,22.828,22.812,20.0]
[1674238579465,10.0,22.828,22.813,9.11547375]
[1674238579673,10.0,22.828,22.814,20.0]
[1674238579881,10.0,22.831,22.814,20.0]
[1674238580084,10.0,22.833,22.82,24.43]
[1674238580294,10.0,22.833,22.821,20.0]
[1674238580519,87.8336913,22.836,22.821,29.11547375]
[1674238580720,87.8336913,22.836,22.822,20.07547375]
[1674238580939,87.8336913,22.836,22.823,20.0]
[1674238581136,87.8336913,22.836,22.823,29.11547375]
[1674238581353,87.8336913,22.836,22.83,24.2]
[1674238581767,87.8336913,22.836,22.831,29.11547375]
[1674238582206,87.8336913,22.836,22.832,9.11547375]
[1674238582416,87.8336913,22.836,22.833,20.0]
[1674238582839,87.8336913,22.836,22.834,9.11547375]
[1674238583045,28.8536913,22.836,22.834,9.11547375]
[1674238583362,28.8536913,22.836,22.835,20.0]
[1674238583884,28.8536913,22.836,22.831,20.0]
[1674238585340,28.8536913,22.836,22.832,26.11547375]
[1674238585552,28.8536913,22.836,22.834,10.0]
[1674238585766,110.7119,22.854,22.836,10.0]
[1674238585980,32.8,22.868,22.84,24.38]
[1674238586191,143.5119,22.868,22.841,20.0]
[1674238586391,143.5119,22.868,22.842,17.0]
[1674238586605,10.0,22.867,22.842,17.0]
[1674238586811,32.81,22.866,22.843,20.0]
[1674238587022,32.81,22.866,22.843,29.11547375]
[1674238587356,32.81,22.866,22.844,9.11547375]
[1674238587567,32.81,22.866,22.845,20.0]
[1674238587568,10.0,22.865,22.845,20.0]
[1674238587783,32.81,22.864,22.846,17.0]
[1674238587988,32.81,22.864,22.85,24.43]
[1674238588304,10.0,22.863,22.851,20.0]
[1674238588503,10.0,22.861,22.851,29.11547375]
[1674238588716,10.0,22.861,22.852,9.11547375]
[1674238588928,10.0,22.861,22.853,20.0]
[1674238589340,10.0,22.861,22.854,9.11547375]
[1674238589548,10.0,22.863,22.854,9.11547375]
[1674238589752,10.0,22.865,22.855,20.0]
[1674238589981,10.0,22.868,22.855,37.0]
[1674238590187,152.4906,22.876,22.86,24.24]
[1674238590504,10.0,22.875,22.861,17.0]
[1674238590711,10.0,22.875,22.862,20.0]
[1674238590921,32.8,22.874,22.862,29.11547375]
[1674238591249,17.504596,22.88,22.863,26.11547375]
[1674238591560,17.504596,22.88,22.871,10.0]
[1674238591780,17.504596,22.88,22.872,37.0]
[1674238592087,17.504596,22.88,22.873,9.11547375]
[1674238592296,17.504596,22.88,22.874,37.0]
[1674238592493,17.504596,22.88,22.875,0.96]
[1674238592705,17.504596,22.88,22.875,9.11547375]
[1674238592913,17.504596,22.88,22.874,20.0]
[1674238593124,17.504596,22.88,22.875,9.11547375]
[1674238593341,17.504596,22.88,22.876,20.0]
[1674238593877,17.504596,22.88,22.876,29.11547375]
[1674238594075,17.504596,22.88,22.877,17.0]
[1674238594607,17.504596,22.88,22.877,50.36223806]
[1674238595023,17.504596,22.88,22.877,59.47771181]
[1674238595233,17.504596,22.88,22.877,42.47771181]
[1674238595860,17.504596,22.88,22.877,9.11547375]
[1674238596068,17.504596,22.88,22.876,20.0]
[1674238596295,17.504596,22.88,22.877,9.11547375]
[1674238596498,17.504596,22.88,22.878,35.61557139]
[1674238596901,17.504596,22.88,22.873,9.11547375]
[1674238597112,10.0,22.879,22.867,35.61557139]
[1674238597369,32.79,22.878,22.864,9.11547375]
[1674238597550,10.0,22.877,22.864,9.11547375]
[1674238597769,32.79,22.876,22.864,9.11547375]
[1674238598165,32.79,22.876,22.864,44.73104514]
[1674238598373,32.78,22.884,22.871,10.0]
[1674238598585,116.3636,22.903,22.87,24.43]
[1674238598818,124.865,22.902,22.87,24.43]
[1674238599037,124.865,22.902,22.87,71.70677687]
[1674238599224,32.76,22.896,22.871,20.0]
[1674238599557,8.5,22.895,22.864,35.61557139]
[1674238599867,32.77,22.894,22.864,35.61557139]
[1674238600074,32.77,22.894,22.864,82.89234826]
[1674238600282,49.77,22.894,22.87,24.43]
[1674238600494,10.0,22.893,22.866,10.0]
[1674238600688,32.77,22.892,22.871,55.84210552]
[1674238600906,10.0,22.891,22.871,55.84210552]
[1674238601134,124.865,22.902,22.872,63.50534621]
[1674238601448,10.0,22.902,22.89,24.43]
[1674238601662,10.0,22.902,22.891,20.0]
[1674238601884,17.49009,22.907,22.891,28.56532865]
[1674238602189,17.49009,22.907,22.892,92.41767691]
[1674238602394,17.49009,22.907,22.9,24.26]
[1674238602714,115.2621,22.935,22.9,24.26]
[1674238602715,32.71,22.934,22.901,20.0]
[1674238602902,146.9256,22.934,22.902,10.0]
[1674238603338,0.44334875,22.906,22.903,5.03796]
[1674238603765,0.44334875,22.906,22.891,52.48653433]
[1674238603979,32.75,22.905,22.892,5.04039]
[1674238604287,42.75,22.905,22.885,10.0]
[1674238604500,10.0,22.905,22.885,5.04193]
[1674238604717,32.75,22.904,22.885,5.04193]
[1674238605024,32.75,22.904,22.88,24.2]
[1674238605025,17.96,22.903,22.88,24.2]
[1674238605343,17.96,22.903,22.867,4.43772834]
[1674238605344,32.76,22.902,22.87,24.38]
[1674238605546,17.0,22.901,22.871,5.04501]
[1674238605742,32.76,22.9,22.871,5.04501]
[1674238605952,17.0,22.899,22.871,5.04501]
[1674238606162,32.76,22.898,22.871,5.04501]
[1674238606390,17.0,22.897,22.871,5.04501]
[1674238606710,42.76,22.896,22.871,5.04501]
[1674238606927,17.96,22.895,22.861,10.0]
[1674238607117,135.5,22.889,22.842,136.22315212]
[1674238607323,6.93790222,22.886,22.843,5.0512]
[1674238607658,24.31,22.88,22.85,8.56532865]
[1674238607969,139.85056364,22.878,22.851,5.04943]
[1674238608179,59.16365039,22.877,22.851,4.54943]
[1674238608371,69.79,22.877,22.851,4.54943]
[1674238608579,17.96,22.876,22.844,8.56532865]
[1674238608803,52.79,22.875,22.844,8.56532865]
[1674238608997,17.96,22.874,22.84,24.43]
[1674238609210,24.25,22.87,22.833,8.56532865]
[1674238609435,59.8,22.869,22.834,5.05319]
[1674238609643,60.76,22.869,22.834,5.05319]
[1674238609855,23.75576951,22.868,22.835,8.56532865]
[1674238610065,50.77,22.867,22.83,24.43]
[1674238610273,10.0,22.866,22.831,8.56532865]
[1674238610491,50.77,22.865,22.831,8.56532865]
[1674238610699,50.77,22.865,22.831,13.61917865]
[1674238611017,50.77,22.865,22.832,8.56532865]
[1674238611227,10.0,22.864,22.832,8.56532865]
[1674238611443,49.81,22.863,22.832,8.56532865]
[1674238611658,0.96,22.862,22.832,8.56532865]
[1674238611962,37.86596,22.861,22.832,8.56532865]
[1674238612157,10.0,22.86,22.832,8.56532865]
[1674238612382,38.83596,22.859,22.832,8.56532865]
[1674238612595,38.83596,22.859,22.83,24.43]
[1674238612596,5.05596,22.858,22.833,20.0]
[1674238612802,32.82,22.857,22.83,24.43]
[1674238613013,15.05596,22.856,22.83,24.43]
[1674238613224,55.83596,22.855,22.83,24.43]
[1674238613443,55.83596,22.855,22.826,8.56532865]
[1674238613444,15.05596,22.854,22.826,8.56532865]
[1674238613662,37.88596,22.853,22.826,8.56532865]
[1674238613865,0.96,22.852,22.826,8.56532865]
[1674238614076,32.83,22.851,22.826,8.56532865]
[1674238614296,10.0,22.85,22.826,8.56532865]
[1674238614506,33.79,22.849,22.82,24.2]
[1674238614708,33.79,22.849,22.83,24.19]
[1674238614905,5.05596,22.848,22.822,8.56532865]
[1674238615249,10.0,22.846,22.822,8.56532865]
[1674238615466,38.85596,22.845,22.822,8.56532865]
[1674238615762,15.05596,22.844,22.823,20.0]
[1674238615971,32.84,22.843,22.823,20.0]
[1674238616182,10.0,22.842,22.821,20.0]
[1674238616509,0.96,22.841,22.821,20.0]
[1674238616718,5.05596,22.84,22.821,20.0]
[1674238617238,10.0,22.839,22.821,20.0]
[1674238617557,6.01596,22.838,22.821,20.0]
[1674238617746,37.90596,22.837,22.82,24.2]
[1674238617954,5.05596,22.836,22.82,24.2]
[1674238618181,5.05596,22.836,22.83,24.43]
[1674238619103,10.0,22.856,22.831,19.52532865]
[1674238619318,10.0,22.856,22.84,24.43]
[1674238619526,197.13172951,22.855,22.82,24.2]
[1674238619761,5.05596,22.854,22.8,97.88]
[1674238619949,5.05596,22.854,22.815,8.56532865]
[1674238619950,24.43,22.85,22.815,8.56532865]
[1674238620154,10.0,22.848,22.83,24.24]
[1674238621227,10.0,22.848,22.831,20.0]
[1674238621228,49.84,22.847,22.831,20.0]
[1674238621433,32.84,22.847,22.831,20.0]
[1674238621645,32.84,22.847,22.822,20.0]
[1674238621855,147.8086,22.847,22.822,20.0]
[1674238622071,17.0,22.846,22.82,24.2]
[1674238622287,43.8,22.845,22.82,24.2]
[1674238622502,17.0,22.844,22.82,24.2]
[1674238622699,33.8,22.843,22.82,24.2]
[1674238622907,32.84,22.844,22.83,24.26]
[1674238623134,10.0,22.845,22.83,24.26]
[1674238623752,114.9686,22.847,22.831,28.56532865]
[1674238623982,32.83,22.853,22.831,28.56532865]
[1674238624200,32.82,22.855,22.833,10.0]
[1674238624388,32.82,22.855,22.834,20.0]
[1674238624592,32.82,22.855,22.822,10.0]
[1674238624806,32.83,22.853,22.826,8.56532865]
[1674238625016,32.83,22.853,22.82,24.2]
[1674238625221,10.0,22.852,22.821,8.56532865]
[1674238625560,55.84596,22.851,22.81,24.19]
[1674238625767,5.05596,22.85,22.82,24.38]
[1674238626082,10.0,22.848,22.82,24.38]
[1674238626298,164.0974,22.847,22.82,24.38]
[1674238626817,48.81172951,22.846,22.81,24.43]
[1674238627136,10.0,22.843,22.801,10.0]
[1674238627328,294.33466,22.842,22.801,10.0]
[1674238627536,135.5,22.839,22.8,24.48]
[1674238627748,24.25,22.83,22.798,8.56532865]
[1674238628079,10.0,22.827,22.79,24.4]
[1674238628299,24.31,22.82,22.782,8.56532865]
[1674238628612,10.0,22.818,22.782,8.56532865]
[1674238628817,54.93596,22.817,22.782,8.56532865]
[1674238629009,10.0,22.815,22.78,24.66]
[1674238629215,74.93596,22.814,22.77,24.24]
[1674238629451,24.25,22.81,22.778,8.56532865]
[1674238629638,190.44596,22.809,22.77,24.24]
[1674238629854,5.05596,22.808,22.77,32.80532865]
[1674238630169,10.0,22.806,22.77,32.80532865]
[1674238630379,38.91596,22.805,22.77,32.80532865]
[1674238630594,22.05596,22.804,22.771,8.56532865]
[1674238630801,37.95596,22.803,22.77,24.24]
[1674238631013,10.0,22.801,22.771,8.56532865]
[1674238631231,55.91596,22.8,22.77,24.24]
[1674238631441,38.91596,22.8,22.771,8.56532865]
[1674238631652,33.86,22.8,22.78,24.19]
[1674238631865,32.9,22.8,22.78,24.19]
[1674238632056,32.9,22.802,22.782,10.0]
[1674238632273,114.5306,22.803,22.781,8.56532865]
[1674238632481,114.5306,22.803,22.783,17.1306573]
[1674238632697,32.9,22.802,22.784,20.0]
[1674238632899,114.5306,22.803,22.784,20.0]
[1674238633114,42.9,22.802,22.78,24.19]
[1674238633320,42.9,22.802,22.78,32.75532865]
[1674238633544,10.0,22.801,22.77,34.43]
[1674238633737,10.0,22.806,22.78,32.96532865]
[1674238634287,234.5093,22.814,22.78,32.96532865]
[1674238634288,32.9,22.805,22.781,18.56532865]
[1674238634596,32.89,22.812,22.781,10.0]
[1674238634802,32.89,22.812,22.79,24.26]
[1674238635038,10.0,22.811,22.791,10.0]
[1674238635245,10.0,22.811,22.79,24.26]
[1674238635461,10.0,22.811,22.791,8.56532865]
[1674238635652,32.89,22.81,22.792,20.0]
[1674238635863,32.89,22.81,22.79,8.56532865]
[1674238636084,10.0,22.809,22.791,20.0]
[1674238636295,32.89,22.808,22.791,20.0]
[1674238636917,10.0,22.807,22.791,20.0]
[1674238637145,32.89,22.806,22.784,20.0]
[1674238637551,10.0,22.805,22.784,20.0]
[1674238638192,10.0,22.805,22.785,8.56532865]
[1674238638405,32.9,22.804,22.784,20.0]
[1674238638731,10.0,22.803,22.78,32.96532865]
[1674238639042,10.0,22.801,22.78,8.56532865]
[1674238639250,32.9,22.8,22.78,8.56532865]
[1674238639433,10.0,22.799,22.78,8.56532865]
[1674238639646,33.87,22.798,22.78,8.56532865]
[1674238639869,33.87,22.798,22.77,24.4]
[1674238640070,27.0,22.797,22.771,8.56532865]
[1674238640399,32.91,22.796,22.77,24.4]
[1674238640590,17.0,22.795,22.771,8.56532865]
[1674238640802,58.92596,22.794,22.734,136.22315212]
[1674238641010,32.05596,22.793,22.751,10.0]
[1674238641236,37.96596,22.792,22.751,10.0]
[1674238641450,23.01596,22.791,22.752,8.56532865]
[1674238641646,37.97596,22.79,22.752,6.56532865]
[1674238641851,10.0,22.788,22.753,10.0]
[1674238642071,55.93596,22.787,22.74,26.53]
[1674238642279,160.55596,22.786,22.743,8.56532865]
[1674238642490,55.93596,22.785,22.743,8.56532865]
[1674238642705,25.05596,22.784,22.743,8.56532865]
[1674238642915,10.0,22.782,22.744,10.0]
[1674238643118,55.94596,22.781,22.744,10.0]
[1674238643335,5.05596,22.78,22.74,26.53]
[1674238643547,50.89,22.779,22.74,34.97526143]
[1674238643743,50.89,22.779,22.75,26.27]
[1674238643955,10.0,22.778,22.751,10.0]
[1674238644177,32.94,22.777,22.751,10.0]
[1674238644381,0.96,22.776,22.751,10.0]
[1674238644598,32.94,22.775,22.751,8.0]
[1674238644812,0.96,22.774,22.751,8.0]
[1674238645023,32.94,22.773,22.75,24.27]
[1674238645225,32.94,22.777,22.752,8.44526143]
[1674238645761,32.94,22.777,22.753,10.0]
[1674238645961,32.94,22.777,22.75,24.27]
[1674238646893,32.94,22.777,22.751,18.44526143]
[1674238647119,32.93,22.78,22.751,18.44526143]
[1674238647443,32.93,22.78,22.752,8.44526143]
[1674238647656,32.93,22.78,22.753,20.0]
[1674238647863,10.0,22.779,22.754,10.0]
[1674238648071,32.93,22.778,22.755,20.0]
[1674238648273,32.93,22.778,22.751,10.0]
[1674238648906,10.0,22.776,22.751,10.0]
[1674238649103,23.75576951,22.783,22.751,10.0]
[1674238649104,32.94,22.775,22.752,8.44526143]
[1674238649321,32.93,22.78,22.751,10.0]
[1674238649734,10.0,22.779,22.751,10.0]
[1674238649961,32.93,22.778,22.751,10.0]
[1674238650275,5.05596,22.777,22.752,20.0]
[1674238650468,49.94,22.776,22.743,10.0]
[1674238650677,55.95596,22.776,22.743,10.0]
[1674238650889,10.0,22.775,22.743,10.0]
[1674238651117,50.9,22.774,22.743,10.0]
[1674238651746,10.0,22.772,22.74,26.53]
[1674238651948,162.4626,22.771,22.74,26.53]
[1674238652485,10.0,22.77,22.742,10.0]
[1674238652671,50.91,22.769,22.743,20.0]
[1674238652887,10.0,22.768,22.743,20.0]
[1674238653118,10.0,22.766,22.743,20.0]
[1674238653436,10.0,22.764,22.743,20.0]
[1674238653739,33.92,22.763,22.742,10.0]
[1674238653934,32.96,22.763,22.743,20.0]
[1674238654147,32.95,22.765,22.743,20.0]
[1674238654359,10.0,22.768,22.75,26.27]
[1674238654801,10.0,22.768,22.751,20.0]
[1674238655201,10.0,22.769,22.751,20.0]
[1674238655413,32.94,22.774,22.751,20.0]
[1674238655634,32.93,22.778,22.752,8.44526143]
[1674238655845,10.0,22.777,22.754,10.0]
[1674238656042,10.0,22.777,22.755,20.96]
[1674238656255,32.94,22.776,22.755,20.0]
[1674238656669,10.0,22.775,22.755,20.0]
[1674238657209,10.0,22.775,22.753,8.44526143]
[1674238657435,10.0,22.775,22.754,20.0]
[1674238657631,10.0,22.773,22.751,20.0]